[Event "*** SCC Grand Prix: Titled Tuesday Blitz"]
[Site "Chess.com"]
[Date "2020.06.02"]
[Round "2"]
[White "x-0414717230"]
[Black "szefru"]
[Result "1-0"]
[WhiteElo "2607"]
[BlackElo "2114"]
[TimeControl "180+1"]
[EndTime "10:15:54 PDT"]
[Termination "x-0414717230 won by resignation"]

1. d4 {[%clk 0:03:00.9]} 1... Nf6 {[%clk 0:02:58.9]} 2. c4 {[%clk 0:02:49.1]}
2... g6 {[%clk 0:02:57.1]} 3. Nc3 {[%clk 0:02:49]} 3... Bg7 {[%clk 0:02:56.9]}
4. e4 {[%clk 0:02:49.2]} 4... d6 {[%clk 0:02:56.8]} 5. Nf3 {[%clk 0:02:49.6]}
5... O-O {[%clk 0:02:56.6]} 6. Be2 {[%clk 0:02:49.9]} 6... e5 {[%clk 0:02:48.4]}
7. Be3 {[%clk 0:02:48.7]} 7... Nc6 {[%clk 0:02:45.2]} 8. d5 {[%clk 0:02:48.9]}
8... Ne7 {[%clk 0:02:44.5]} 9. Nd2 {[%clk 0:02:49.1]} 9... Ne8 {[%clk
0:02:42.6]} 10. b4 {[%clk 0:02:49.1]} 10... f5 {[%clk 0:02:42.1]} 11. f3 {[%clk
0:02:49.7]} 11... f4 {[%clk 0:02:42.1]} 12. Bf2 {[%clk 0:02:50.1]} 12... g5
{[%clk 0:02:42.2]} 13. c5 {[%clk 0:02:50.7]} 13... Ng6 {[%clk 0:02:41.5]} 14.
Nc4 {[%clk 0:02:51.1]} 14... h5 {[%clk 0:02:31.6]} 15. a4 {[%clk 0:02:51]} 15...
Nh4 {[%clk 0:02:17.2]} 16. Rg1 {[%clk 0:02:16.2]} 16... Kh8 {[%clk 0:01:49.2]}
17. a5 {[%clk 0:02:14.8]} 17... Rg8 {[%clk 0:01:48.5]} 18. Kd2 {[%clk
0:01:53.4]} 18... Bd7 {[%clk 0:01:29.1]} 19. a6 {[%clk 0:01:52.3]} 19... Rb8
{[%clk 0:01:05.5]} 20. axb7 {[%clk 0:01:51.6]} 20... c6 {[%clk 0:00:53.7]} 21.
dxc6 {[%clk 0:01:48.5]} 21... Bxc6 {[%clk 0:00:53.6]} 22. b5 {[%clk 0:01:45.3]}
22... dxc5+ {[%clk 0:00:49.1]} 23. Kc2 {[%clk 0:01:45.2]} 23... Bxb7 {[%clk
0:00:47.8]} 24. Qxd8 {[%clk 0:01:44.7]} 24... Rxd8 {[%clk 0:00:48.7]} 25. Rxa7
{[%clk 0:01:45.1]} 25... Rb8 {[%clk 0:00:34.9]} 26. Bxc5 {[%clk 0:01:43.8]}
26... Bf8 {[%clk 0:00:35.2]} 27. Bxf8 {[%clk 0:01:35.2]} 27... Rxf8 {[%clk
0:00:36.1]} 28. g3 {[%clk 0:01:35.6]} 28... fxg3 {[%clk 0:00:35.8]} 29. Rxg3
{[%clk 0:01:35.7]} 29... g4 {[%clk 0:00:33.9]} 30. fxg4 {[%clk 0:01:34.8]} 30...
hxg4 {[%clk 0:00:34.2]} 31. Rxg4 {[%clk 0:01:34.9]} 31... Rf4 {[%clk 0:00:34.1]}
32. Nxe5 {[%clk 0:01:34.2]} 32... Rxg4 {[%clk 0:00:32.8]} 33. Bxg4 {[%clk
0:01:35.1]} 33... Ng2 {[%clk 0:00:31.2]} 34. Nd7 {[%clk 0:01:33.3]} 34... Ne3+
{[%clk 0:00:27.4]} 35. Kd3 {[%clk 0:01:33.7]} 35... Nxg4 {[%clk 0:00:26.4]} 36.
Nxb8 {[%clk 0:01:33.7]} 36... Ne5+ {[%clk 0:00:26.7]} 37. Kd4 {[%clk 0:01:33]}
1-0

[Event "*** SCC Grand Prix: Titled Tuesday Blitz"]
[Site "Chess.com"]
[Date "2020.06.02"]
[Round "2"]
[White "KejJaj"]
[Black "CroissantNeuf"]
[Result "0-1"]
[WhiteElo "2033"]
[BlackElo "2365"]
[TimeControl "180+1"]
[EndTime "10:15:54 PDT"]
[Termination "CroissantNeuf won by resignation"]

1. d4 {[%clk 0:03:00.9]} 1... Nf6 {[%clk 0:02:59.7]} 2. Bf4 {[%clk 0:02:59.6]}
2... e6 {[%clk 0:02:57.6]} 3. e3 {[%clk 0:02:59.6]} 3... d5 {[%clk 0:02:57.5]}
4. Nd2 {[%clk 0:02:58.5]} 4... Bd6 {[%clk 0:02:58.1]} 5. Bg3 {[%clk 0:02:52.5]}
5... O-O {[%clk 0:02:58]} 6. Ngf3 {[%clk 0:02:52.3]} 6... b6 {[%clk 0:02:58.6]}
7. Ne5 {[%clk 0:02:48.3]} 7... Bb7 {[%clk 0:02:58.1]} 8. Bd3 {[%clk 0:02:44.1]}
8... c5 {[%clk 0:02:57.5]} 9. c3 {[%clk 0:02:43.5]} 9... Nc6 {[%clk 0:02:53.2]}
10. Qf3 {[%clk 0:02:40.4]} 10... Qc7 {[%clk 0:02:47.1]} 11. Nxc6 {[%clk
0:02:30.3]} 11... Bxc6 {[%clk 0:02:45.5]} 12. Bh4 {[%clk 0:02:10.3]} 12... Nd7
{[%clk 0:02:21.7]} 13. Qh5 {[%clk 0:01:34.4]} 13... g6 {[%clk 0:02:11.7]} 14.
Qh6 {[%clk 0:01:29.3]} 14... e5 {[%clk 0:02:10.1]} 15. Nf3 {[%clk 0:01:25.6]}
15... Rfe8 {[%clk 0:00:54.1]} 16. Ng5 {[%clk 0:01:21]} 16... Nf8 {[%clk
0:00:51.8]} 17. dxe5 {[%clk 0:01:12.7]} 17... Bxe5 {[%clk 0:00:47.8]} 18. O-O-O
{[%clk 0:01:11]} 18... Bg7 {[%clk 0:00:47.6]} 19. Ne6 {[%clk 0:00:52.4]} 19...
Nxe6 {[%clk 0:00:44.2]} 0-1

[Event "*** SCC Grand Prix: Titled Tuesday Blitz"]
[Site "Chess.com"]
[Date "2020.06.02"]
[Round "2"]
[White "PotapovaM"]
[Black "AniJak"]
[Result "1-0"]
[WhiteElo "2455"]
[BlackElo "2244"]
[TimeControl "180+1"]
[EndTime "10:15:56 PDT"]
[Termination "PotapovaM won by checkmate"]

1. d4 {[%clk 0:03:00.9]} 1... d5 {[%clk 0:02:59.5]} 2. c4 {[%clk 0:03:01.3]}
2... c6 {[%clk 0:02:59.1]} 3. Nf3 {[%clk 0:03:01]} 3... Nf6 {[%clk 0:02:58.9]}
4. g3 {[%clk 0:03:00.6]} 4... dxc4 {[%clk 0:02:53.8]} 5. Bg2 {[%clk 0:03:00.3]}
5... b5 {[%clk 0:02:49.6]} 6. Ne5 {[%clk 0:03:00.8]} 6... Bb7 {[%clk 0:02:49.2]}
7. O-O {[%clk 0:03:01.4]} 7... e6 {[%clk 0:02:47.3]} 8. a4 {[%clk 0:03:01.9]}
8... a6 {[%clk 0:02:44.8]} 9. b3 {[%clk 0:02:59.6]} 9... cxb3 {[%clk 0:02:37.9]}
10. Qxb3 {[%clk 0:03:00.5]} 10... Qxd4 {[%clk 0:02:28.2]} 11. Bb2 {[%clk
0:02:59.6]} 11... Qb4 {[%clk 0:02:23.4]} 12. Qc2 {[%clk 0:02:59.3]} 12... Qc5
{[%clk 0:01:44.9]} 13. Qb3 {[%clk 0:02:37.3]} 13... Qb4 {[%clk 0:01:43.8]} 14.
Qc2 {[%clk 0:02:34]} 14... Qc5 {[%clk 0:01:43.6]} 15. Qd2 {[%clk 0:02:26.4]}
15... Nbd7 {[%clk 0:01:31.6]} 16. Rc1 {[%clk 0:02:21.7]} 16... Qd6 {[%clk
0:01:27.6]} 17. Nd3 {[%clk 0:02:21]} 17... b4 {[%clk 0:01:13.6]} 18. Qc2 {[%clk
0:01:43.9]} 18... Rc8 {[%clk 0:01:10.7]} 19. Nd2 {[%clk 0:01:43.9]} 19... Be7
{[%clk 0:01:08.4]} 20. Nc4 {[%clk 0:01:43.8]} 20... Qb8 {[%clk 0:01:07.6]} 21.
Nde5 {[%clk 0:01:39.8]} 21... O-O {[%clk 0:01:03.1]} 22. Rd1 {[%clk 0:01:33.8]}
22... Rfd8 {[%clk 0:01:00.3]} 23. a5 {[%clk 0:01:31.6]} 23... c5 {[%clk
0:00:59.1]} 24. e4 {[%clk 0:01:27.3]} 24... Nxe5 {[%clk 0:00:51.6]} 25. Bxe5
{[%clk 0:01:28.2]} 25... Qa8 {[%clk 0:00:50.2]} 26. Nb6 {[%clk 0:01:26]} 26...
Qa7 {[%clk 0:00:49.5]} 27. Nxc8 {[%clk 0:01:25.7]} 27... Bxc8 {[%clk 0:00:49.5]}
28. h3 {[%clk 0:01:17]} 28... Nd7 {[%clk 0:00:47.3]} 29. Bb2 {[%clk 0:01:13.1]}
29... Bb7 {[%clk 0:00:47.2]} 30. Qa4 {[%clk 0:01:09.7]} 30... Nb8 {[%clk
0:00:40.4]} 31. Rxd8+ {[%clk 0:01:08.7]} 31... Bxd8 {[%clk 0:00:40.1]} 32. Qe8#
{[%clk 0:01:09.4]} 1-0

[Event "*** SCC Grand Prix: Titled Tuesday Blitz"]
[Site "Chess.com"]
[Date "2020.06.02"]
[Round "2"]
[White "Jungle_Jaguar"]
[Black "Colombiano07"]
[Result "0-1"]
[WhiteElo "2605"]
[BlackElo "2325"]
[TimeControl "180+1"]
[EndTime "10:15:58 PDT"]
[Termination "Colombiano07 won by resignation"]

1. e4 {[%clk 0:03:00.9]} 1... c5 {[%clk 0:02:57.8]} 2. Nf3 {[%clk 0:03:00.5]}
2... g6 {[%clk 0:02:57.6]} 3. d4 {[%clk 0:02:59.3]} 3... cxd4 {[%clk 0:02:58.5]}
4. Nxd4 {[%clk 0:02:59.4]} 4... Nf6 {[%clk 0:02:59.1]} 5. f3 {[%clk 0:02:53.5]}
5... Bg7 {[%clk 0:02:55.3]} 6. c4 {[%clk 0:02:53.5]} 6... O-O {[%clk 0:02:55.3]}
7. Nc3 {[%clk 0:02:53.8]} 7... Nc6 {[%clk 0:02:56]} 8. Be3 {[%clk 0:02:53.7]}
8... Nxd4 {[%clk 0:02:56.7]} 9. Bxd4 {[%clk 0:02:53.6]} 9... d6 {[%clk
0:02:57.6]} 10. Qd2 {[%clk 0:02:53.4]} 10... Be6 {[%clk 0:02:57.3]} 11. Be2
{[%clk 0:02:53.2]} 11... a5 {[%clk 0:02:57.4]} 12. O-O {[%clk 0:02:51.2]} 12...
a4 {[%clk 0:02:57.9]} 13. Rac1 {[%clk 0:02:47.1]} 13... Qa5 {[%clk 0:02:57.5]}
14. Rfd1 {[%clk 0:02:45.2]} 14... Rfc8 {[%clk 0:02:55.9]} 15. Nd5 {[%clk
0:02:24.5]} 15... Qxd2 {[%clk 0:02:51.5]} 16. Rxd2 {[%clk 0:02:14.2]} 16... Bxd5
{[%clk 0:02:47.2]} 17. exd5 {[%clk 0:02:14.1]} 17... Bh6 {[%clk 0:02:42.7]} 18.
Rcd1 {[%clk 0:02:02.9]} 18... Bxd2 {[%clk 0:02:40.8]} 19. Rxd2 {[%clk
0:02:03.8]} 19... Nd7 {[%clk 0:02:40.7]} 20. f4 {[%clk 0:02:00.2]} 20... Nc5
{[%clk 0:02:38.3]} 21. Bg4 {[%clk 0:01:57.7]} 21... f5 {[%clk 0:02:37.5]} 22.
Be2 {[%clk 0:01:57.5]} 22... Kf7 {[%clk 0:02:37.9]} 23. h3 {[%clk 0:01:56]}
23... h5 {[%clk 0:02:36.9]} 24. g4 {[%clk 0:01:55.5]} 24... hxg4 {[%clk
0:02:37.8]} 25. hxg4 {[%clk 0:01:56.4]} 25... e5 {[%clk 0:02:33.3]} 26. fxe5
{[%clk 0:01:55.1]} 26... Ne4 {[%clk 0:02:31.7]} 27. e6+ {[%clk 0:01:54.8]} 27...
Ke7 {[%clk 0:02:31.2]} 28. Rd1 {[%clk 0:01:53.7]} 28... a3 {[%clk 0:02:04.4]}
29. b4 {[%clk 0:01:53.3]} 29... b5 {[%clk 0:02:00.8]} 30. c5 {[%clk 0:01:50.1]}
30... Ra4 {[%clk 0:01:57.4]} 31. cxd6+ {[%clk 0:01:43.3]} 31... Kxd6 {[%clk
0:01:58.3]} 32. gxf5 {[%clk 0:01:34.8]} 32... gxf5 {[%clk 0:01:57.5]} 33. Be3
{[%clk 0:01:34.8]} 33... Rxb4 {[%clk 0:01:54]} 34. Bf4+ {[%clk 0:01:33.1]} 34...
Ke7 {[%clk 0:01:46.2]} 35. Bd3 {[%clk 0:01:25.6]} 35... Rd4 {[%clk 0:01:36.5]}
36. d6+ {[%clk 0:01:25.9]} 36... Kxe6 {[%clk 0:01:34.7]} 37. Kg2 {[%clk
0:01:03.4]} 37... Rc3 {[%clk 0:01:28.7]} 38. Be2 {[%clk 0:00:49.1]} 38... Rxd1
{[%clk 0:01:28.1]} 39. Bxd1 {[%clk 0:00:50]} 39... Nxd6 {[%clk 0:01:27.2]} 40.
Bb3+ {[%clk 0:00:50.2]} 40... Rxb3 {[%clk 0:01:24.9]} 41. axb3 {[%clk
0:00:50.2]} 41... a2 {[%clk 0:01:25.4]} 42. Be5 {[%clk 0:00:50.5]} 42... Kxe5
{[%clk 0:01:25.1]} 0-1

[Event "*** SCC Grand Prix: Titled Tuesday Blitz"]
[Site "Chess.com"]
[Date "2020.06.02"]
[Round "2"]
[White "Malysch"]
[Black "VladimirBelous"]
[Result "0-1"]
[WhiteElo "2494"]
[BlackElo "2729"]
[TimeControl "180+1"]
[EndTime "10:15:59 PDT"]
[Termination "VladimirBelous won by resignation"]

1. d4 {[%clk 0:03:00.9]} 1... Nf6 {[%clk 0:02:59.5]} 2. c4 {[%clk 0:03:00.8]}
2... g6 {[%clk 0:02:58.2]} 3. g3 {[%clk 0:03:00.7]} 3... c5 {[%clk 0:02:57.6]}
4. Bg2 {[%clk 0:03:01.6]} 4... cxd4 {[%clk 0:02:57.4]} 5. Nf3 {[%clk 0:03:02.5]}
5... e5 {[%clk 0:02:50.9]} 6. Nxd4 {[%clk 0:03:03.4]} 6... exd4 {[%clk
0:02:50.1]} 7. Qxd4 {[%clk 0:01:57.9]} 7... Nc6 {[%clk 0:02:42.1]} 8. Qd2 {[%clk
0:01:47.9]} 8... Bg7 {[%clk 0:02:25.8]} 9. O-O {[%clk 0:01:46.9]} 9... O-O
{[%clk 0:02:26.3]} 10. Nc3 {[%clk 0:01:47.2]} 10... d6 {[%clk 0:02:25.6]} 11. b3
{[%clk 0:01:47.2]} 11... Be6 {[%clk 0:02:17.7]} 12. Bb2 {[%clk 0:01:47.4]} 12...
Qe7 {[%clk 0:02:06.8]} 13. Rad1 {[%clk 0:01:46.5]} 13... Rad8 {[%clk 0:02:06.5]}
14. h3 {[%clk 0:01:42.8]} 14... a6 {[%clk 0:02:05.9]} 15. Kh2 {[%clk 0:01:40.6]}
15... Rfe8 {[%clk 0:02:06.3]} 16. e3 {[%clk 0:01:35.7]} 16... h5 {[%clk
0:01:57.5]} 17. Rfe1 {[%clk 0:01:21.4]} 17... Qc7 {[%clk 0:01:50]} 18. Kg1
{[%clk 0:01:19.3]} 18... Qa5 {[%clk 0:01:34.9]} 19. Rc1 {[%clk 0:01:17.2]} 19...
d5 {[%clk 0:01:30.5]} 20. Nb1 {[%clk 0:00:39.9]} 20... Qxa2 {[%clk 0:01:17.6]}
21. Qc2 {[%clk 0:00:22.4]} 21... dxc4 {[%clk 0:01:10.5]} 22. bxc4 {[%clk
0:00:23.3]} 22... Nb4 {[%clk 0:01:05.6]} 0-1

[Event "*** SCC Grand Prix: Titled Tuesday Blitz"]
[Site "Chess.com"]
[Date "2020.06.02"]
[Round "2"]
[White "davidkalashian"]
[Black "vladislavkovalev"]
[Result "0-1"]
[WhiteElo "2553"]
[BlackElo "2872"]
[TimeControl "180+1"]
[EndTime "10:16:02 PDT"]
[Termination "vladislavkovalev won by checkmate"]

1. d4 {[%clk 0:03:00.9]} 1... Nf6 {[%clk 0:02:59.2]} 2. c4 {[%clk 0:03:00.2]}
2... g6 {[%clk 0:02:57.9]} 3. Nc3 {[%clk 0:02:59.6]} 3... Bg7 {[%clk 0:02:58.4]}
4. e4 {[%clk 0:02:59.5]} 4... d6 {[%clk 0:02:59]} 5. Be2 {[%clk 0:02:59.6]} 5...
O-O {[%clk 0:02:59.7]} 6. Bg5 {[%clk 0:02:59.6]} 6... c5 {[%clk 0:02:59.4]} 7.
d5 {[%clk 0:02:59]} 7... b5 {[%clk 0:03:00]} 8. cxb5 {[%clk 0:02:58.4]} 8... a6
{[%clk 0:02:59.4]} 9. a4 {[%clk 0:02:58.7]} 9... Qa5 {[%clk 0:02:56]} 10. Bd2
{[%clk 0:02:57.2]} 10... axb5 {[%clk 0:02:56.4]} 11. Bxb5 {[%clk 0:02:46]} 11...
Ba6 {[%clk 0:02:34.1]} 12. Nge2 {[%clk 0:02:37]} 12... Bxb5 {[%clk 0:02:33.7]}
13. Nxb5 {[%clk 0:02:37.3]} 13... Qd8 {[%clk 0:02:34.2]} 14. Nec3 {[%clk
0:02:35.9]} 14... Na6 {[%clk 0:02:32.1]} 15. O-O {[%clk 0:02:34.7]} 15... Nb4
{[%clk 0:02:32.1]} 16. f3 {[%clk 0:02:21.2]} 16... Nd7 {[%clk 0:02:29.9]} 17.
Na2 {[%clk 0:02:10.7]} 17... Nd3 {[%clk 0:02:25.4]} 18. Nac3 {[%clk 0:01:03.4]}
18... c4 {[%clk 0:02:22.9]} 19. b3 {[%clk 0:00:58]} 19... cxb3 {[%clk
0:02:09.2]} 20. Qxb3 {[%clk 0:00:58.9]} 20... Qb6+ {[%clk 0:02:09.2]} 21. Kh1
{[%clk 0:00:56.9]} 21... Nf2+ {[%clk 0:02:08]} 22. Rxf2 {[%clk 0:00:56.8]} 22...
Qxf2 {[%clk 0:02:08.9]} 23. Bg5 {[%clk 0:00:55.3]} 23... Rfc8 {[%clk 0:02:04.6]}
24. Bxe7 {[%clk 0:00:51.5]} 24... Bxc3 {[%clk 0:01:50.9]} 25. Nxc3 {[%clk
0:00:49.1]} 25... Qe3 {[%clk 0:01:51.5]} 26. Bxd6 {[%clk 0:00:35.9]} 26... Qxc3
{[%clk 0:01:51.4]} 27. Qd1 {[%clk 0:00:36.4]} 27... Qc2 {[%clk 0:01:44.4]} 28.
Qd4 {[%clk 0:00:22.3]} 28... Rxa4 {[%clk 0:01:24.8]} 29. Rxa4 {[%clk 0:00:19.9]}
29... Qxa4 {[%clk 0:01:25.3]} 30. Qxa4 {[%clk 0:00:18.9]} 30... Rc1+ {[%clk
0:01:25.3]} 31. Qd1 {[%clk 0:00:19.5]} 31... Rxd1# {[%clk 0:01:25.6]} 0-1

[Event "*** SCC Grand Prix: Titled Tuesday Blitz"]
[Site "Chess.com"]
[Date "2020.06.02"]
[Round "2"]
[White "MartinCerveny"]
[Black "abhidabhi"]
[Result "0-1"]
[WhiteElo "2472"]
[BlackElo "2719"]
[TimeControl "180+1"]
[EndTime "10:16:02 PDT"]
[Termination "abhidabhi won by resignation"]

1. d4 {[%clk 0:03:00.9]} 1... Nf6 {[%clk 0:02:59.8]} 2. c4 {[%clk 0:03:00.8]}
2... g6 {[%clk 0:03:00.3]} 3. Nc3 {[%clk 0:03:00.7]} 3... d5 {[%clk 0:03:00.5]}
4. cxd5 {[%clk 0:03:00.3]} 4... Nxd5 {[%clk 0:03:01.4]} 5. e4 {[%clk 0:03:00.7]}
5... Nxc3 {[%clk 0:03:01.9]} 6. bxc3 {[%clk 0:03:01.6]} 6... Bg7 {[%clk
0:03:02.5]} 7. Nf3 {[%clk 0:03:02.1]} 7... c5 {[%clk 0:03:01.4]} 8. Rb1 {[%clk
0:03:02.2]} 8... O-O {[%clk 0:02:59.8]} 9. Be2 {[%clk 0:03:01.8]} 9... cxd4
{[%clk 0:02:59.7]} 10. cxd4 {[%clk 0:03:01.6]} 10... Qa5+ {[%clk 0:03:00.2]} 11.
Qd2 {[%clk 0:03:01.8]} 11... Qxd2+ {[%clk 0:03:00]} 12. Bxd2 {[%clk 0:03:02.7]}
12... b6 {[%clk 0:02:59.2]} 13. Rc1 {[%clk 0:03:02.4]} 13... Bb7 {[%clk
0:02:57.4]} 14. Bd3 {[%clk 0:02:59.2]} 14... e6 {[%clk 0:02:37.3]} 15. Rc7
{[%clk 0:02:50.4]} 15... Ba6 {[%clk 0:02:37.3]} 16. Ke2 {[%clk 0:02:49.1]} 16...
Bxd3+ {[%clk 0:02:34.2]} 17. Kxd3 {[%clk 0:02:48.6]} 17... Na6 {[%clk
0:02:34.5]} 18. Rc2 {[%clk 0:02:44.9]} 18... Rfd8 {[%clk 0:02:31.3]} 19. Ke3
{[%clk 0:02:31.8]} 19... Rd7 {[%clk 0:02:17.4]} 20. g4 {[%clk 0:02:19.8]} 20...
Rad8 {[%clk 0:02:16.8]} 21. e5 {[%clk 0:02:19.7]} 21... Bf8 {[%clk 0:02:15.1]}
22. Rhc1 {[%clk 0:02:14.8]} 22... Ba3 {[%clk 0:02:13.6]} 23. Rb1 {[%clk
0:02:14]} 23... Nc7 {[%clk 0:02:13.8]} 24. Ng5 {[%clk 0:02:07.8]} 24... Rxd4
{[%clk 0:02:05.7]} 25. Rxc7 {[%clk 0:01:58.5]} 25... Rd3+ {[%clk 0:01:59.7]} 26.
Ke2 {[%clk 0:01:49.6]} 26... Rxd2+ {[%clk 0:01:59.6]} 27. Kf3 {[%clk 0:01:41.4]}
27... Bc5 {[%clk 0:01:58.9]} 28. Ne4 {[%clk 0:01:39.5]} 28... Rxa2 {[%clk
0:01:54]} 29. Nxc5 {[%clk 0:01:36.9]} 29... bxc5 {[%clk 0:01:54.2]} 30. Rbb7
{[%clk 0:01:36.7]} 30... Rdd2 {[%clk 0:01:51.8]} 31. g5 {[%clk 0:01:23.4]} 31...
Rxf2+ {[%clk 0:01:52]} 32. Ke3 {[%clk 0:01:22.6]} 32... Rae2+ {[%clk 0:01:47.6]}
33. Kd3 {[%clk 0:01:21.9]} 33... Rxe5 {[%clk 0:01:47.1]} 34. h4 {[%clk
0:01:18.3]} 34... Kg7 {[%clk 0:01:41.2]} 35. Rc8 {[%clk 0:01:09.5]} 35... h6
{[%clk 0:01:38.8]} 36. gxh6+ {[%clk 0:01:08.2]} 36... Kxh6 {[%clk 0:01:38.2]}
37. Rh8+ {[%clk 0:01:08.2]} 37... Kg7 {[%clk 0:01:38.2]} 38. Rbb8 {[%clk
0:01:07.8]} 38... Rf4 {[%clk 0:01:37.2]} 39. Rhg8+ {[%clk 0:01:03.5]} 39... Kf6
{[%clk 0:01:36.6]} 40. Rb7 {[%clk 0:01:02.1]} 40... Rd4+ {[%clk 0:01:31.6]} 41.
Kc2 {[%clk 0:01:01]} 41... Re3 {[%clk 0:01:31.8]} 42. Rf8 {[%clk 0:00:59.8]}
42... Rxh4 {[%clk 0:01:23.5]} 43. Rbxf7+ {[%clk 0:00:59.5]} 43... Ke5 {[%clk
0:01:23.5]} 44. Kd2 {[%clk 0:00:59.6]} 44... Ra3 {[%clk 0:01:22.7]} 0-1

[Event "*** SCC Grand Prix: Titled Tuesday Blitz"]
[Site "Chess.com"]
[Date "2020.06.02"]
[Round "2"]
[White "MIJUAREZ"]
[Black "PattyCastillo"]
[Result "1-0"]
[WhiteElo "2344"]
[BlackElo "1906"]
[TimeControl "180+1"]
[EndTime "10:16:02 PDT"]
[Termination "MIJUAREZ won by resignation"]

1. e4 {[%clk 0:03:00.9]} 1... c5 {[%clk 0:02:57]} 2. Nf3 {[%clk 0:02:54.9]} 2...
d6 {[%clk 0:02:56.2]} 3. d4 {[%clk 0:02:54.5]} 3... cxd4 {[%clk 0:02:55.6]} 4.
Nxd4 {[%clk 0:02:55.2]} 4... Nf6 {[%clk 0:02:55.4]} 5. f3 {[%clk 0:02:54.7]}
5... a6 {[%clk 0:02:53.7]} 6. c4 {[%clk 0:02:54.3]} 6... e5 {[%clk 0:02:53.5]}
7. Nb3 {[%clk 0:02:52.8]} 7... Be6 {[%clk 0:02:52.8]} 8. Nc3 {[%clk 0:02:53.2]}
8... Nc6 {[%clk 0:02:49.5]} 9. Be3 {[%clk 0:02:52.6]} 9... Be7 {[%clk
0:02:49.5]} 10. Be2 {[%clk 0:02:51.9]} 10... O-O {[%clk 0:02:49.6]} 11. Qd2
{[%clk 0:02:52.5]} 11... Rc8 {[%clk 0:02:49.2]} 12. O-O {[%clk 0:02:52.7]} 12...
Re8 {[%clk 0:02:27.5]} 13. Nd5 {[%clk 0:02:51.5]} 13... Bxd5 {[%clk 0:02:18.6]}
14. cxd5 {[%clk 0:02:51.1]} 14... Nb8 {[%clk 0:02:14.1]} 15. Na5 {[%clk
0:02:48.8]} 15... b6 {[%clk 0:01:54.9]} 16. Nc4 {[%clk 0:02:39.4]} 16... Nbd7
{[%clk 0:01:50.3]} 17. Qb4 {[%clk 0:02:33]} 17... a5 {[%clk 0:01:43.1]} 18. Qb5
{[%clk 0:02:30.1]} 18... Qc7 {[%clk 0:01:17.9]} 19. Rac1 {[%clk 0:02:17.3]}
19... Qb8 {[%clk 0:01:17.3]} 20. Nxb6 {[%clk 0:02:06.9]} 20... Nxb6 {[%clk
0:01:12.2]} 21. Bxb6 {[%clk 0:02:04.7]} 21... Rxc1 {[%clk 0:01:08.7]} 22. Rxc1
{[%clk 0:02:02.7]} 22... Bd8 {[%clk 0:01:06.8]} 23. Rc6 {[%clk 0:02:00.1]} 23...
Bxb6+ {[%clk 0:01:05.3]} 24. Qxb6 {[%clk 0:01:54]} 24... Qxb6+ {[%clk
0:00:46.2]} 25. Rxb6 {[%clk 0:01:49.7]} 25... Rd8 {[%clk 0:00:44.2]} 26. Bb5
{[%clk 0:01:46.2]} 26... Nh5 {[%clk 0:00:42.3]} 27. Ra6 {[%clk 0:01:45.2]} 27...
Nf4 {[%clk 0:00:40.8]} 28. Rxa5 {[%clk 0:01:44.2]} 28... Rb8 {[%clk 0:00:34.5]}
29. a4 {[%clk 0:01:39.5]} 29... h5 {[%clk 0:00:33.6]} 30. Ra6 {[%clk 0:01:37.4]}
30... Rd8 {[%clk 0:00:32.7]} 31. g3 {[%clk 0:01:35.8]} 31... Nh3+ {[%clk
0:00:31.6]} 32. Kg2 {[%clk 0:01:34.3]} 32... Ng5 {[%clk 0:00:31.7]} 33. h4
{[%clk 0:01:34.2]} 33... Nh7 {[%clk 0:00:30.8]} 34. Rc6 {[%clk 0:01:34.4]} 34...
Nf6 {[%clk 0:00:30.1]} 35. a5 {[%clk 0:01:34.2]} 35... Kf8 {[%clk 0:00:29.7]}
36. a6 {[%clk 0:01:33.9]} 36... Nd7 {[%clk 0:00:29.7]} 37. a7 {[%clk 0:01:31]}
37... Nc5 {[%clk 0:00:27.6]} 38. Rxc5 {[%clk 0:01:30.2]} 38... dxc5 {[%clk
0:00:26.9]} 39. Bc6 {[%clk 0:01:30.8]} 1-0

[Event "*** SCC Grand Prix: Titled Tuesday Blitz"]
[Site "Chess.com"]
[Date "2020.06.02"]
[Round "2"]
[White "Korchmar_Vasiliy"]
[Black "Indianlad"]
[Result "0-1"]
[WhiteElo "2592"]
[BlackElo "3032"]
[TimeControl "180+1"]
[EndTime "10:16:03 PDT"]
[Termination "Indianlad won on time"]

1. d4 {[%clk 0:03:00.9]} 1... Nf6 {[%clk 0:03:00.5]} 2. c4 {[%clk 0:03:00.6]}
2... e6 {[%clk 0:03:01.1]} 3. g3 {[%clk 0:03:00.6]} 3... d5 {[%clk 0:02:59.5]}
4. Bg2 {[%clk 0:03:00.5]} 4... Be7 {[%clk 0:03:00]} 5. Nf3 {[%clk 0:03:00.3]}
5... O-O {[%clk 0:03:00.6]} 6. O-O {[%clk 0:03:01]} 6... dxc4 {[%clk 0:02:57.3]}
7. Ne5 {[%clk 0:03:01.4]} 7... Nbd7 {[%clk 0:02:51.1]} 8. Nxc4 {[%clk
0:03:00.6]} 8... Nb6 {[%clk 0:02:51.8]} 9. Ne5 {[%clk 0:02:55.8]} 9... c5 {[%clk
0:02:51.7]} 10. dxc5 {[%clk 0:02:48.9]} 10... Bxc5 {[%clk 0:02:52.6]} 11. Nc3
{[%clk 0:02:49.5]} 11... Nbd5 {[%clk 0:02:50.9]} 12. Nxd5 {[%clk 0:02:15.1]}
12... Nxd5 {[%clk 0:02:50.5]} 13. Qb3 {[%clk 0:02:14.3]} 13... a5 {[%clk
0:02:42.4]} 14. Rd1 {[%clk 0:01:54.1]} 14... a4 {[%clk 0:02:41.6]} 15. Qc4
{[%clk 0:01:46.8]} 15... Qb6 {[%clk 0:02:38.9]} 16. Nd3 {[%clk 0:01:46.8]} 16...
Be7 {[%clk 0:02:27.1]} 17. e4 {[%clk 0:01:42.8]} 17... Nf6 {[%clk 0:02:27.2]}
18. Be3 {[%clk 0:01:40.9]} 18... Qa5 {[%clk 0:02:27.8]} 19. Rac1 {[%clk
0:01:10.2]} 19... Bd7 {[%clk 0:02:27.4]} 20. Qc7 {[%clk 0:01:01.4]} 20... Qb5
{[%clk 0:01:53.1]} 21. Nc5 {[%clk 0:00:31.3]} 21... Rac8 {[%clk 0:01:41.6]} 22.
Rxd7 {[%clk 0:00:07.3]} 22... Nxd7 {[%clk 0:01:31.3]} 23. Qxd7 {[%clk
0:00:05.8]} 23... Qxd7 {[%clk 0:01:31.4]} 24. Nxd7 {[%clk 0:00:05.7]} 24...
Rxc1+ {[%clk 0:01:32.3]} 25. Bxc1 {[%clk 0:00:06.5]} 25... Rd8 {[%clk 0:01:33]}
0-1